bitfinex-derivatives/quotes_ETHF0:USTF0_20250626
["timestamp","ask_amount","ask_price","bid_price","bid_amount"]
[1750949989278,0.81689,2447.2,2447.1,4.6605]
[1750949990277,0.81689,2447.2,2447.1,3.2078]
[1750949991983,0.81699,2446.9,2446.8,1.1585]
[1750949992283,0.81699,2446.9,2446.8,2.5527]
[1750949992486,0.81703,2446.8,2446.7,3.2078]
[1750949992680,3.20637,2447.1,2446.6,1.1863]
[1750949992681,0.81706,2446.7,2446.6,1.1863]
[1750949992882,0.81706,2446.7,2446.6,2.5805]
[1750949994485,0.81706,2446.7,2446.6,1.1863]
[1750949994893,3.2078,2447.0,2446.6,1.1863]
[1750949995090,0.81703,2446.8,2446.7,0.81703]
[1750949995283,0.81703,2446.8,2446.7,2.14143]
[1750949996288,8.152,2447.1,2446.8,0.81701]
[1750949996483,0.81696,2447.0,2446.9,2.14137]
[1750949996884,2.3016,2447.4,2447.2,0.81689]
[1750949997079,2.3016,2447.4,2447.1,0.8169]
[1750949997288,0.81689,2447.2,2447.1,0.8169]
[1750949997583,0.81686,2447.3,2447.1,3.39129]
[1750949997787,0.81686,2447.3,2447.1,2.5744]
[1750949997988,0.81688,2447.3,2447.2,0.81689]
[1750949998187,0.81689,2447.2,2447.1,3.3913]
[1750949998790,0.81687,2447.3,2447.2,0.81687]
[1750949999088,3.11845,2447.4,2447.3,0.81686]
[1750949999290,0.81678,2447.6,2447.5,0.81679]
[1750949999697,2.4125,2447.8,2447.4,2.1774]
[1750949999891,2.4125,2447.8,2447.5,0.81676]
[1750950000086,0.81673,2447.7,2447.6,2.26816]
[1750950000289,0.81671,2447.8,2447.7,0.81672]
[1750950000490,0.81667,2447.9,2447.8,0.81668]
[1750950000689,0.81667,2447.9,2447.8,2.26808]
[1750950000889,6.988,2448.0,2447.9,0.81666]
[1750950000890,0.81665,2448.0,2447.9,0.81666]
[1750950001095,0.81661,2448.1,2447.9,1.4514]
[1750950001292,1.1441,2448.4,2448.1,0.81659]
[1750950001591,0.81652,2448.3,2448.2,1.4514]
[1750950001787,0.81661,2448.1,2447.9,4.02445]
[1750950001989,0.81661,2448.1,2448.0,1.4514]
[1750950002188,0.81669,2447.8,2447.7,2.3743]
[1750950002794,0.81669,2447.8,2447.7,1.2337]
[1750950002987,0.81673,2447.7,2447.6,4.6592]
[1750950003586,0.81673,2447.7,2447.6,3.2078]
[1750950003786,2.473,2447.9,2447.2,4.5553]
[1750950003787,2.04179,2447.8,2447.2,4.5553]
[1750950003996,0.81686,2447.3,2447.2,4.5553]
[1750950004384,2.04179,2447.8,2447.2,4.5553]
[1750950004590,0.81684,2447.4,2447.2,4.5553]
[1750950004791,13.4689,2447.9,2447.3,1.3475]
[1750950005093,0.81683,2447.4,2447.3,1.3475]
[1750950005296,0.81681,2447.5,2447.3,1.3475]
[1750950005487,0.81683,2447.4,2447.3,1.3475]
[1750950009392,3.2078,2447.6,2447.1,1.1397]
[1750950009695,0.81696,2447.0,2446.9,3.2078]
[1750950010090,0.81706,2446.7,2446.6,1.217]
[1750950012100,0.81706,2446.7,2446.6,2.4381]
[1750950012293,9.3932,2447.2,2446.6,2.4381]
[1750950012294,2.4342,2447.2,2446.7,0.81706]
[1750950012493,0.81702,2446.9,2446.8,3.2078]
[1750950012692,0.81702,2446.9,2446.8,4.646]
[1750950013600,2.4342,2447.2,2446.8,16.01205469]
[1750950013793,0.81692,2447.2,2446.8,17.97105469]
[1750950014099,0.81699,2447.0,2446.8,4.02481]
[1750950014294,0.81699,2447.0,2446.9,3.48099]
[1750950014502,0.81693,2447.1,2447.0,0.81695]
[1750950014698,0.81693,2447.1,2447.0,2.25515]
[1750950014897,0.81691,2447.2,2447.1,0.81692]
[1750950015098,0.81691,2447.2,2447.1,2.5449]
[1750950015501,0.81691,2447.2,2447.1,1.167]
[1750950017201,1.1867,2447.6,2447.1,12.11875469]
[1750950017404,0.81682,2447.5,2447.4,3.2078]
[1750950019501,2.18952,2447.5,2447.4,3.2078]
[1750950019699,0.81693,2447.1,2446.9,4.4336]
[1750950019900,0.81696,2447.0,2446.9,4.4336]
[1750950020203,0.81696,2447.0,2446.9,3.2078]
[1750950020604,0.81703,2446.8,2446.7,1.20179462]
[1750950020902,0.81706,2446.7,2446.6,5.22667462]
[1750950021102,0.81706,2446.7,2446.6,5.41608]
[1750950021607,0.81706,2446.7,2446.6,7.01847283]
[1750950021806,0.81706,2446.7,2446.6,5.41608]
[1750950022107,0.81706,2446.8,2446.7,0.81705]
[1750950022299,0.81703,2446.8,2446.7,1.60596929]
[1750950023197,0.81706,2446.7,2446.6,4.41251746]
[1750950023800,0.81706,2446.7,2446.6,4.81376929]
[1750950024111,0.81706,2446.7,2446.6,3.2078]
[1750950025106,0.81706,2446.7,2446.6,4.41253971]
[1750950025707,0.81706,2446.7,2446.6,3.2078]
[1750950036419,0.81706,2446.7,2446.6,4.41253971]
[1750950037716,0.81706,2446.7,2446.6,4.41222241]
[1750950037919,0.81706,2446.7,2446.6,4.02489]
[1750950038113,0.81706,2446.7,2446.6,6.93286151]
[1750950038309,0.81706,2446.7,2446.6,5.7298]
[1750950038819,0.81706,2446.7,2446.6,6.54689]
[1750950039213,0.81705,2446.8,2446.7,0.81704]
[1750950039612,0.81706,2446.7,2446.6,7.33576929]
[1750950040111,0.81706,2446.7,2446.6,5.96436929]
[1750950041308,0.81706,2446.7,2446.6,5.56350054]
[1750950044714,3.20489,2447.1,2446.6,5.56381757]
[1750950044914,0.81705,2446.8,2446.7,3.38695757]
[1750950045115,0.81698,2447.0,2446.9,0.81697]
[1750950045316,0.81687,2447.3,2447.2,0.81688]
[1750950045823,0.81683,2447.4,2447.3,0.81684]
[1750950046123,0.81683,2447.4,2447.3,2.02024]
[1750950046320,0.81683,2447.4,2447.3,1.2034]
[1750950046614,0.81683,2447.4,2447.3,2.02026]
[1750950046813,0.81683,2447.4,2447.3,1.2034]
[1750950047414,0.81686,2447.3,2447.2,3.2078]
[1750950053424,1.3646,2447.5,2447.1,1.20541757]
[1750950053425,0.81689,2447.2,2447.1,1.20541757]
[1750950053627,0.81693,2447.1,2447.0,1.20541757]
[1750950054826,0.81696,2447.0,2446.9,1.20541757]
[1750950056021,0.81699,2446.9,2446.8,1.60596929]
[1750950056729,2.04232,2447.1,2446.8,2.41318859]
[1750950056928,0.81696,2447.0,2446.9,2.78251375]
[1750950057129,0.81696,2447.0,2446.9,5.99031375]
[1750950057621,0.81696,2447.0,2446.9,6.80730375]
[1750950057825,0.81696,2447.0,2446.9,4.3815]
[1750950058023,1.2092,2447.5,2446.9,9.3815]
[1750950058223,0.81683,2447.4,2447.3,4.41379403]
[1750950058523,0.81683,2447.4,2447.3,3.2078]
[1750950058825,0.81683,2447.4,2447.1,1.60799204]
[1750950058826,0.81689,2447.2,2447.1,1.20599403]
[1750950059424,0.81689,2447.2,2447.1,2.02292403]
[1750950059926,0.81689,2447.2,2447.1,3.37082403]
[1750950060330,0.81689,2447.2,2447.1,1.20599403]
[1750950060829,0.81682,2447.5,2447.1,1.4411]
[1750950061030,0.81683,2447.4,2447.3,3.2078]
[1750950061527,0.81683,2447.4,2447.3,5.23065403]
[1750950061721,0.81683,2447.4,2447.3,6.67175403]
[1750950062520,0.81683,2447.4,2447.3,5.85489403]
[1750950063329,0.81683,2447.4,2447.3,4.6489]
[1750950064824,0.81683,2447.4,2447.3,3.2078]
[1750950066821,0.81689,2447.2,2447.1,1.20599403]
[1750950067024,0.81696,2447.0,2446.9,4.81579204]
[1750950067224,0.81696,2447.0,2446.9,3.2078]
[1750950068432,0.81699,2446.9,2446.8,1.60799204]
[1750950068632,1.0715,2446.9,2446.6,2.41318859]
[1750950068930,0.81706,2446.7,2446.6,2.41318859]
[1750950069232,0.81706,2446.7,2446.6,1.60991049]
[1750950069928,0.81709,2446.6,2446.5,4.81771049]
[1750950071525,0.81709,2446.6,2446.5,3.2078]
[1750950071728,0.81708,2446.7,2446.5,3.2078]
[1750950071928,0.81709,2446.6,2446.5,4.5553]
[1750950072233,0.81709,2446.6,2446.5,5.37243]
[1750950073035,0.81709,2446.6,2446.5,3.2078]
[1750950073922,0.81709,2446.6,2446.5,5.47803]
[1750950074529,0.81709,2446.6,2446.5,7.08794049]
[1750950074732,0.81709,2446.6,2446.5,5.47803]
[1750950075536,9.403,2447.1,2446.6,0.81709]
[1750950075537,0.81709,2446.7,2446.6,0.81709]
[1750950075738,0.81709,2446.7,2446.6,1.4531]
[1750950075938,3.2078,2447.2,2446.6,7.81915469]
[1750950076133,3.2078,2447.2,2446.8,3.2078]
[1750950076134,0.81693,2447.1,2446.8,3.2078]
[1750950076341,0.81693,2447.1,2446.9,2.5616]
[1750950076534,0.81693,2447.1,2446.9,4.55046]
[1750950076838,0.81693,2447.1,2447.0,0.81696]
[1750950077041,0.81693,2447.1,2447.0,2.19726]
[1750950077236,0.81693,2447.1,2447.0,1.3803]
[1750950079738,0.81693,2447.1,2447.0,2.19726]
[1750950079940,13.35445,2447.6,2447.0,1.3803]
[1750950080242,2.04199,2447.5,2447.0,2.19724]
[1750950080446,0.81691,2447.2,2447.1,0.81692]
[1750950080745,0.81691,2447.2,2447.1,4.02472]
[1750950081044,0.81689,2447.2,2447.1,4.02471]
[1750950081246,1.385,2447.8,2447.1,4.02471]
[1750950081247,2.43761111,2448.2,2447.3,2.04215]
[1750950081457,2.43761111,2448.2,2448.1,3.2078]
[1750950081458,0.81656,2448.2,2448.1,3.2078]
[1750950082353,2.43761111,2448.3,2448.1,3.2078]
[1750950082653,2.43761111,2448.3,2448.2,2.17796]
[1750950082849,2.43761111,2448.4,2448.3,0.81652]
[1750950083050,3.25409111,2448.5,2448.3,2.17792]
[1750950083445,0.81649,2448.4,2448.3,2.17792]
[1750950083653,2.43761111,2448.6,2448.3,1.3614]
[1750950083954,3.25400111,2448.7,2448.5,0.81644]
[1750950084252,0.81646,2448.5,2448.4,4.3355]
[1750950084445,0.81642,2448.6,2448.4,6.51336]
[1750950085048,0.81646,2448.5,2448.4,5.6969]
[1750950085250,0.81641,2448.7,2448.4,5.6969]
[1750950085454,1.1842,2449.0,2448.4,5.6969]
[1750950085455,0.81638,2448.8,2448.4,5.6969]
[1750950085650,0.81638,2448.8,2448.6,0.8164]
[1750950085952,11.3097,2449.2,2448.7,4.5805]
[1750950085953,1.1959,2449.2,2448.7,4.5805]
[1750950086151,0.81625,2449.2,2449.0,4.02408]
[1750950086453,0.81621,2449.3,2449.1,0.81626]
[1750950086657,1.99358,2449.4,2449.1,0.81623]
[1750950086850,0.81618,2449.4,2449.2,0.81622]
[1750950087050,0.81619,2449.3,2449.1,2.18894]
[1750950087452,5.7399,2449.6,2449.1,1.3727]
[1750950087756,0.8162,2449.3,2449.1,2.18896]
[1750950087952,0.8162,2449.3,2449.1,3.29656]
[1750950088153,0.8162,2449.3,2449.1,3.29654]
[1750950088551,0.8162,2449.3,2448.7,1.1975]
[1750950088552,0.81634,2448.9,2448.8,6.904]
[1750950088755,0.81634,2448.9,2448.8,8.2205]
[1750950089458,0.81632,2448.9,2448.8,8.2205]
[1750950090856,0.81636,2448.8,2448.7,5.565]
[1750950091056,0.81636,2448.8,2448.7,12.468]
[1750950091257,0.81636,2448.8,2448.7,5.565]
[1750950091558,0.81636,2448.8,2448.7,3.2078]
[1750950092066,7.47055469,2449.3,2448.7,4.02418]
[1750950092067,1.1045,2449.3,2448.7,4.02418]
[1750950092363,0.81634,2448.9,2448.8,1.1151]
[1750950092559,0.81634,2448.9,2448.8,5.6614]
[1750950093264,0.81634,2448.9,2448.8,4.3229]
[1750950094263,0.81631,2449.0,2448.8,4.3229]
[1750950094463,0.81631,2449.0,2448.9,1.3997]
[1750950095358,1.396,2449.5,2448.9,1.3997]
[1750950095561,0.81622,2449.2,2449.1,3.2078]
[1750950095768,1.1405,2449.6,2449.1,4.6075]
[1750950095966,0.81622,2449.2,2449.1,4.6075]
[1750950096560,0.81622,2449.2,2449.1,6.902]
[1750950097069,0.81621,2449.3,2449.1,7.71824]
[1750950097367,0.81619,2449.3,2449.2,1.418]
[1750950098168,0.81626,2449.1,2449.0,3.2078]
[1750950099366,0.81629,2449.0,2448.9,6.901]
[1750950101567,4.57696,2449.3,2448.9,6.901]
[1750950101568,2.5364,2449.3,2448.9,7.71732]
[1750950101769,0.81622,2449.2,2449.1,3.2078]
[1750950101963,0.81622,2449.2,2449.1,4.02406]
[1750950102156,0.81622,2449.2,2449.1,3.2078]
[1750950107067,0.81632,2448.9,2448.8,4.3229]
[1750950107268,6.36605469,2448.9,2448.4,3.2078]
[1750950107472,3.7126,2448.8,2448.4,4.02428]
[1750950107670,0.81646,2448.5,2448.4,4.02428]
[1750950108371,0.81646,2448.5,2448.4,3.2078]
[1750950108563,0.81652,2448.3,2448.2,6.873]
[1750950109769,3.48748,2448.6,2447.8,5.4216]
[1750950109770,8.40724469,2448.5,2447.8,5.4216]
[1750950109970,0.81666,2447.9,2447.8,3.2078]
[1750950110572,2.4579,2448.1,2447.8,3.2078]
[1750950110971,1.0923,2448.1,2448.0,0.81662]
[1750950111173,1.0923,2448.1,2447.8,3.2078]
[1750950111174,1.1081,2448.2,2448.1,0.81659]
[1750950111974,1.0923,2448.5,2447.9,1.3945]
[1750950112176,0.81651,2448.4,2447.9,1.3945]
[1750950112477,0.81649,2448.4,2448.2,0.81654]
[1750950113569,1.92458,2448.5,2448.3,0.81652]
[1750950113975,1.1081,2448.5,2448.4,0.81649]
[1750950115079,4.02415,2448.9,2448.7,0.81638]
[1750950115382,0.81633,2448.9,2448.7,0.81637]
[1750950115583,1.116,2449.0,2448.8,0.81635]
[1750950115982,1.116,2449.0,2448.9,0.81632]
[1750950116279,1.1664,2449.1,2448.5,6.63359]
[1750950116280,1.1664,2449.1,2449.0,0.81629]
[1750950116784,1.91517,2449.4,2449.2,0.8162]
[1750950117683,1.099,2449.4,2448.9,4.5925]
[1750950117878,1.099,2449.4,2449.3,0.81619]
[1750950118078,0.81611,2449.6,2449.4,0.81615]
[1750950118283,1.1801,2449.7,2449.2,3.2078]
[1750950118284,1.99617,2449.7,2449.5,0.81611]
[1750950118477,4.02384,2449.8,2449.3,1.3847]
[1750950118678,3.2078,2449.8,2449.5,0.8161]
[1750950118877,1.91501,2449.9,2449.7,0.81605]
[1750950119073,1.915,2449.9,2449.6,0.81607]
[1750950119385,0.81606,2449.7,2449.5,0.81611]
[1750950119687,0.81605,2449.8,2449.6,0.81609]
[1750950120285,0.81606,2449.7,2449.5,0.81611]
[1750950120482,11.61392469,2449.8,2449.2,11.98861]
[1750950120676,0.81616,2449.4,2449.2,5.11461]
[1750950120882,0.81616,2449.4,2449.2,11.98861]
[1750950121178,0.81614,2449.5,2449.3,0.81619]
[1750950121380,0.81616,2449.4,2449.2,11.9886]
[1750950121686,13.06876469,2449.8,2449.2,10.0808]
[1750950121986,11.02865469,2449.8,2449.2,10.0808]
[1750950122178,2.04024,2449.6,2449.2,3.2078]
[1750950122383,4.5879,2449.5,2448.9,11.69071049]
[1750950122586,4.3109,2449.5,2448.9,13.07921049]
[1750950122787,0.81616,2449.4,2449.2,0.81621]
[1750950122981,0.81619,2449.3,2449.1,0.81623]
[1750950123182,0.81618,2449.4,2449.2,0.81622]
[1750950123491,4.02394,2449.5,2449.3,0.81618]
[1750950123682,0.81614,2449.5,2449.3,0.81618]
[1750950123883,0.81611,2449.6,2449.2,3.2078]
[1750950124188,0.81613,2449.5,2449.2,4.02401]
[1750950124579,0.81617,2449.4,2449.2,4.02401]
[1750950124790,0.81615,2449.5,2449.3,0.81619]
[1750950125086,5.691,2449.8,2449.3,0.81619]
[1750950125087,0.81616,2449.4,2449.3,2.24289]
[1750950125286,4.3109,2449.8,2449.4,0.81616]
[1750950125487,4.3109,2449.8,2449.3,1.4267]
[1750950125687,0.81612,2449.6,2449.4,0.81615]
[1750950126285,4.3109,2449.8,2449.3,2.24286]
[1750950126585,0.8161,2449.6,2449.4,0.81614]
[1750950126781,0.81604,2449.8,2449.6,0.81608]
[1750950127182,0.81604,2449.8,2449.6,1.90468]
[1750950127380,4.3344,2450.1,2449.8,0.81601]
[1750950127581,1.88707,2450.3,2450.0,0.81593]
[1750950127890,10.0798,2450.6,2449.9,2.16187]
[1750950127891,0.81589,2450.2,2449.9,2.16187]
[1750950128090,0.81588,2450.3,2449.9,1.3459]
[1750950128385,0.81588,2450.3,2450.1,0.8159]
[1750950128578,2.2519,2450.5,2449.9,1.3459]
[1750950128777,8.61795469,2450.5,2449.9,1.3459]
[1750950128989,0.81591,2450.2,2450.0,0.81595]
[1750950129380,1.3477,2450.4,2449.9,2.16189]
[1750950129692,6.36605469,2450.2,2449.5,3.2078]
[1750950129888,0.81607,2449.7,2449.5,10.89591]
[1750950130082,0.81604,2449.8,2449.6,0.81609]
[1750950130589,1.1059,2450.0,2449.5,4.02389]
[1750950130590,0.81606,2449.7,2449.5,4.02389]
[1750950130791,1.146,2449.6,2449.5,4.02392]
[1750950131289,1.1059,2450.0,2449.7,0.81606]
[1750950131290,0.81604,2449.8,2449.7,0.81606]
[1750950131491,0.81606,2449.7,2449.6,0.81607]
[1750950131793,0.81604,2449.8,2449.6,0.81607]
[1750950132183,9.2795,2450.0,2449.5,3.2078]
[1750950132389,1.1059,2450.0,2449.5,3.2078]
[1750950132583,1.92187,2450.0,2449.6,1.3792]
[1750950132890,1.92187,2450.0,2449.8,0.816]
[1750950133286,1.1059,2450.0,2449.9,0.81599]
[1750950133485,1.92188,2450.0,2449.8,0.81601]
[1750950134088,1.92188,2450.0,2449.9,0.81599]
[1750950134293,1.1322,2450.1,2450.0,0.81596]
[1750950134489,1.94815,2450.1,2450.0,0.81596]
[1750950134690,0.81596,2450.0,2449.9,0.81597]
[1750950134886,1.94814,2450.1,2449.9,0.81597]
[1750950135389,1.097,2450.3,2449.8,3.2078]
[1750950135592,1.91288,2450.3,2450.1,0.8159]
[1750950136690,0.81593,2450.1,2449.9,2.4509]
[1750950136994,0.81598,2450.0,2449.8,0.81601]
[1750950137194,0.81599,2449.9,2449.8,0.81601]
[1750950137395,3.2078,2450.1,2449.6,1.1075]
[1750950137593,0.81601,2449.9,2449.7,0.81605]
[1750950137788,0.81605,2449.8,2449.6,1.1075]
[1750950137991,0.81607,2449.7,2449.5,10.87291]
[1750950138497,2.96765,2449.8,2449.7,0.81606]
[1750950138996,2.96765,2449.8,2449.5,10.0568]
[1750950138997,2.1516,2449.8,2449.5,10.0568]
[1750950139293,0.81609,2449.6,2449.5,3.2078]
[1750950140192,0.81609,2449.6,2449.5,4.02392]
[1750950140495,2.1516,2449.8,2449.7,0.81606]
[1750950140697,1.0775,2449.8,2449.7,0.81606]
[1750950140890,0.81594,2450.1,2449.9,0.81599]
[1750950141493,0.81598,2450.0,2449.8,0.81602]
[1750950141696,0.81598,2450.0,2449.9,0.81599]
[1750950141899,0.81596,2450.0,2449.9,0.81599]
[1750950142493,0.81596,2450.0,2449.8,0.81602]
[1750950143309,3.5536,2450.3,2449.7,4.6006]
[1750950143603,0.81598,2450.0,2449.8,0.81602]
[1750950144006,0.81598,2450.0,2449.9,0.81599]
[1750950144599,0.81601,2449.9,2449.8,0.81601]
[1750950144799,0.81602,2449.8,2449.7,3.2078]
[1750950145002,12.09586,2449.9,2449.4,1.20328637]
[1750950145208,0.81616,2449.4,2449.3,1.20328637]
[1750950145403,0.81615,2449.5,2449.3,0.81619]
[1750950145702,5.40051,2449.6,2449.4,0.81615]
[1750950145908,0.81615,2449.5,2449.3,0.81618]
[1750950146103,0.81618,2449.4,2449.2,0.81621]
[1750950146304,0.81617,2449.4,2449.2,1.20328637]
[1750950146608,0.81615,2449.5,2449.4,0.81616]
[1750950147308,0.81616,2449.4,2449.3,2.01946637]
[1750950147605,0.81619,2449.3,2449.2,1.20328637]
[1750950148010,0.81622,2449.2,2449.1,1.20328637]
[1750950148410,10.0568,2449.3,2448.9,1.20328637]
[1750950148611,3.7264,2449.1,2448.9,1.20328637]
[1750950148810,4.02409,2449.0,2448.9,1.20328637]
[1750950149112,0.81632,2448.9,2448.8,1.20328637]
[1750950149303,0.81636,2448.8,2448.7,1.20328637]
[1750950149805,2.23165,2448.9,2448.7,1.20328637]
[1750950150006,3.2078,2449.0,2448.9,0.81632]
[1750950150209,3.2078,2449.0,2448.5,2.57168637]
[1750950150714,4.02411,2449.0,2448.5,2.57168637]
[1750950150903,0.81633,2448.9,2448.5,2.57168637]
[1750950151305,4.02411,2449.0,2448.8,0.81634]
[1750950151604,3.2078,2449.0,2448.5,2.57168637]
[1750950151805,0.81642,2448.6,2448.5,1.20328637]
[1750950152104,0.81642,2448.7,2448.5,0.81646]
[1750950152506,0.81642,2448.7,2448.5,0.81644]
[1750950152712,0.81642,2448.6,2448.5,0.81644]
[1750950153008,0.81642,2448.6,2448.4,1.20328637]
[1750950153009,10.98915469,2449.0,2448.4,1.20328637]
[1750950153209,0.81637,2448.8,2448.7,0.81639]
[1750950153612,0.81639,2448.7,2448.6,0.8164]
[1750950154114,0.81638,2448.8,2448.6,0.8164]
[1750950154312,6.849,2448.9,2448.4,4.5812]
[1750950154706,0.81637,2448.8,2448.6,0.81639]
[1750950154903,16.42385469,2449.0,2448.4,3.2078]
[1750950155210,0.81652,2448.3,2448.2,2.39168637]
[1750950155516,0.81656,2448.2,2448.1,12.07666637]
[1750950155813,0.81659,2448.1,2448.0,1.20328637]
[1750950156313,1.99628,2448.2,2448.1,0.81659]
[1750950156505,1.1797,2448.2,2448.1,0.81659]
[1750950157711,1.1797,2448.2,2448.0,0.8166]
[1750950158613,1.1797,2448.2,2448.1,0.81659]
[1750950160816,7.66747,2448.5,2448.3,0.81651]
[1750950161117,1.1003,2448.6,2448.0,3.2078]
[1750950161118,1.91675,2448.6,2448.4,0.81649]
[1750950161407,8.74775,2448.6,2448.4,0.81649]
[1750950161608,8.74775,2448.6,2448.3,0.81651]
[1750950161609,0.81648,2448.5,2448.3,0.81651]
[1750950161805,0.81648,2448.5,2448.4,0.81649]
[1750950162007,8.74775,2448.6,2448.4,0.81649]
[1750950162811,1.91675,2448.6,2448.4,0.81649]
[1750950163011,10.0388,2448.8,2448.3,3.2078]
[1750950163315,0.81647,2448.5,2448.4,1.93928]
[1750950163812,0.81645,2448.6,2448.5,0.81645]
[1750950165012,0.81646,2448.5,2448.4,1.1228]
[1750950165209,3.2078,2448.5,2448.3,0.81652]
[1750950165515,3.2078,2448.5,2448.0,0.81661]
[1750950165707,0.81659,2448.1,2448.0,0.81661]
[1750950166305,10.22574,2448.4,2447.9,1.1485]
[1750950166512,8.1845,2448.4,2447.9,1.1485]
[1750950166713,8.1845,2448.4,2448.1,0.81658]
[1750950166913,0.8166,2448.1,2448.0,0.81661]
[1750950167310,0.81663,2448.0,2447.9,3.40935]
[1750950167612,8.40740469,2448.3,2447.8,0.81667]
[1750950167814,0.81665,2448.0,2447.8,0.81667]
[1750950168113,0.81658,2448.2,2448.0,0.8166]
[1750950168307,6.36605469,2448.3,2447.8,1.4397]
[1750950168613,6.831,2448.4,2447.9,0.81663]
[1750950168811,0.81661,2448.1,2447.9,0.81663]
[1750950169413,0.81663,2448.0,2447.9,0.81663]
[1750950169612,6.832,2448.2,2447.8,2.25637]
[1750950169814,0.81665,2448.0,2447.9,0.81665]
[1750950170023,0.81661,2448.1,2448.0,0.81661]
[1750950172520,0.81663,2448.0,2447.9,0.81663]
[1750950173423,0.81662,2448.1,2448.0,0.81661]
[1750950173719,10.85638,2448.2,2448.1,0.81659]
[1750950175221,0.81659,2448.1,2448.0,0.8166]
[1750950175619,0.81662,2448.1,2448.0,0.81662]
[1750950176022,0.81663,2448.0,2447.9,0.81664]
[1750950176221,0.81666,2447.9,2447.8,0.81667]
[1750950176718,10.0398,2448.2,2447.7,3.2078]
[1750950176915,0.81662,2448.1,2448.0,0.81662]
[1750950177815,0.81659,2448.1,2448.0,0.81662]
[1750950178019,10.0398,2448.2,2448.1,0.81659]
[1750950178825,0.81661,2448.1,2448.0,0.81661]
[1750950179321,10.85638,2448.2,2448.1,0.81659]
[1750950179627,0.81661,2448.1,2448.0,0.8166]
[1750950180123,5.3967,2448.5,2447.9,2.04165]
[1750950180324,0.81654,2448.3,2448.2,0.81654]
[1750950181021,0.81656,2448.2,2448.1,1.97737]
[1750950181221,0.81663,2448.0,2447.9,1.20328637]
[1750950181415,0.81666,2447.9,2447.8,1.20328637]
[1750950181614,2.3574,2447.9,2447.5,2.36978637]
[1750950181820,10.0408,2448.2,2447.7,2.04182]
[1750950182122,10.85738,2448.2,2448.1,0.81659]
[1750950182612,0.81663,2448.0,2447.9,1.1608]
[1750950182818,0.81661,2448.1,2448.0,0.81661]
[1750950183019,10.0408,2448.2,2447.9,1.1608]
[1750950183220,0.81662,2448.1,2448.0,2.1361]
[1750950183421,10.0408,2448.2,2447.7,4.41108637]
[1750950183726,0.81663,2448.0,2447.9,0.81664]
[1750950183919,10.0408,2448.2,2447.9,0.81664]
[1750950184227,0.81659,2448.1,2447.9,0.81664]
[1750950184416,10.0408,2448.2,2448.1,0.81659]
[1750950184616,6.833,2448.2,2448.1,0.81659]
[1750950185120,6.833,2448.2,2448.1,2.13609]
[1750950185313,7.64956,2448.2,2448.1,2.13609]
[1750950185516,7.64956,2448.2,2448.1,1.3195]
[1750950185714,7.64956,2448.2,2447.9,1.20328637]
[1750950185715,0.81659,2448.1,2448.0,0.81661]
[1750950186020,7.64958,2448.2,2448.1,0.81659]
[1750950187923,6.833,2448.2,2448.1,0.81659]
[1750950188518,7.64956,2448.2,2448.1,0.81659]
[1750950188927,7.64956,2448.2,2448.0,2.01988637]
[1750950189225,0.81663,2448.0,2447.9,1.20328637]
[1750950189430,0.81666,2447.9,2447.8,2.01995637]
[1750950189731,0.81665,2448.0,2447.9,0.81666]
[1750950190328,0.81666,2447.9,2447.8,1.20328637]
[1750950190525,0.81666,2447.9,2447.8,2.01997637]
[1750950191222,0.81665,2448.0,2447.9,0.81664]
[1750950191424,0.81666,2447.9,2447.8,1.20328637]
[1750950191623,0.81669,2447.8,2447.7,5.22780637]
[1750950191823,1.89198,2447.9,2447.8,0.81669]
[1750950192029,0.81663,2448.0,2447.9,0.81664]
[1750950192924,0.81663,2448.0,2447.9,0.81666]
[1750950193121,0.81666,2447.9,2447.8,3.73568637]
[1750950193936,0.81666,2447.9,2447.8,2.30418637]
[1750950194431,0.81666,2447.9,2447.8,3.12087637]
[1750950195233,0.81666,2447.9,2447.8,2.30418637]
[1750950195532,0.81666,2447.9,2447.8,3.12087637]
[1750950196635,0.81666,2447.9,2447.8,2.30418637]
[1750950196828,7.18271469,2447.9,2447.8,1.20328637]
[1750950197038,7.18271469,2447.9,2447.6,1.60991049]
[1750950197039,0.81669,2447.8,2447.7,1.20328637]
[1750950197328,11.35839,2447.8,2447.7,1.20328637]
[1750950197533,0.81673,2447.7,2447.6,1.20328637]
[1750950197738,2.26943,2447.7,2447.5,1.20328637]
[1750950197933,2.26943,2447.7,2447.5,0.20022637]
[1750950197934,10.39061469,2447.6,2447.5,0.20022637]
[1750950198231,0.81686,2447.3,2447.2,1.60991049]
[1750950198432,17.20471469,2447.3,2447.2,1.60991049]
[1750950198630,0.81689,2447.2,2447.1,1.60991049]
[1750950198834,4.54499,2447.2,2447.1,1.60991049]
[1750950199029,0.81693,2447.1,2447.0,1.60991049]
[1750950199337,0.81699,2446.9,2446.8,1.60991049]
[1750950199536,0.81703,2446.8,2446.7,1.60991049]
[1750950200835,0.81703,2446.8,2446.6,2.42700049]
[1750950201038,0.81703,2446.8,2446.6,2.26099]
[1750950201730,0.81706,2446.7,2446.6,1.4439]
[1750950202035,0.81709,2446.6,2446.5,0.8171]
[1750950202234,0.81713,2446.5,2446.4,1.1795]
[1750950202438,0.81721,2446.3,2446.1,2.42716049]
[1750950202636,0.81721,2446.3,2446.1,0.81725]
[1750950202834,0.81721,2446.3,2446.1,2.26115]
[1750950203136,0.81718,2446.4,2446.2,0.81723]
[1750950203324,15.41075469,2446.5,2446.3,0.81718]
[1750950203524,16.22790469,2446.5,2446.3,0.81718]